bitfinex-derivatives/quotes_ETHF0:USTF0_20250831
["timestamp","ask_amount","ask_price","bid_price","bid_amount"]
[1756683563802,3.2078,4389.2,4387.8,0.9034]
[1756683564303,0.9395,4389.1,4387.9,0.243]
[1756683565003,3.2078,4388.7,4387.9,0.243]
[1756683565401,4.1473,4388.7,4388.0,0.9034]
[1756683565601,3.2078,4388.7,4388.0,0.9034]
[1756683566099,4.1473,4388.7,4388.0,0.9034]
[1756683566707,3.2078,4388.7,4388.0,0.9034]
[1756683567506,4.1473,4388.7,4388.0,0.9034]
[1756683568804,3.2078,4388.7,4388.0,0.9034]
[1756683569604,3.2078,4388.7,4387.6,3.2078]
[1756683569605,3.2078,4388.2,4387.6,3.2078]
[1756683569808,3.2078,4388.2,4387.5,0.243]
[1756683569809,0.9395,4388.1,4387.5,0.243]
[1756683570503,0.9395,4388.1,4387.4,0.243]
[1756683570704,1.1825,4388.1,4387.4,0.243]
[1756683570904,1.1825,4388.1,4387.2,0.243]
[1756683570905,0.9395,4388.0,4387.2,0.243]
[1756683571113,0.9395,4388.0,4387.3,0.9034]
[1756683571404,3.2078,4388.7,4387.9,0.9034]
[1756683571605,3.2078,4388.7,4388.1,0.9034]
[1756683571811,0.9395,4388.6,4388.0,0.243]
[1756683572206,0.9395,4388.6,4387.6,0.9034]
[1756683572511,1.19049665,4390.7,4387.5,0.243]
[1756683572512,0.9395,4388.1,4387.5,0.243]
[1756683572712,3.2078,4388.2,4387.6,0.9034]
[1756683573407,3.2078,4388.4,4387.5,0.243]
[1756683573608,3.2078,4387.9,4387.1,33.7294]
[1756683573807,0.9395,4387.7,4387.1,0.243]
[1756683576315,0.9395,4387.7,4387.1,1.1464]
[1756683576914,0.9395,4387.7,4387.1,0.243]
[1756683577612,0.9395,4387.7,4386.8,9.86763408]
[1756683578114,0.9395,4387.7,4386.8,6.65983408]
[1756683578505,3.2078,4387.4,4386.8,6.65983408]
[1756683578710,3.4508,4387.4,4386.8,6.65983408]
[1756683578902,0.9247,4387.3,4386.8,6.65983408]
[1756683579102,4.1325,4387.4,4386.9,0.9379]
[1756683579313,3.2078,4388.0,4387.1,3.2078]
[1756683579609,4.1325,4388.5,4387.3,0.9379]
[1756683579911,4.1325,4388.5,4387.4,0.243]
[1756683580209,3.2078,4387.7,4387.4,0.243]
[1756683580409,0.9247,4387.6,4387.4,0.243]
[1756683580808,4.1325,4387.7,4387.5,0.9379]
[1756683581010,0.9247,4387.6,4387.5,0.9379]
[1756683581509,3.2078,4387.7,4387.5,0.9379]
[1756683581907,0.9247,4388.1,4387.5,0.9379]
[1756683582113,3.2078,4388.5,4387.7,0.9379]
[1756683584216,0.9247,4388.5,4388.2,0.9379]
[1756683584417,0.9247,4388.4,4388.2,1.1809]
[1756683584620,3.2078,4388.4,4387.0,2.02642045]
[1756683584912,2.275,4390.4,4386.9,0.9379]
[1756683584913,3.2078,4387.1,4386.9,0.9379]
[1756683585113,3.2078,4387.1,4386.2,3.2078]
[1756683585314,3.2078,4387.1,4385.9,0.243]
[1756683585315,0.18181347,4387.0,4386.7,0.25072741]
[1756683585619,0.18181347,4386.9,4386.7,0.25072741]
[1756683585912,0.18181347,4386.9,4386.7,0.00672741]
[1756683586314,3.2078,4387.1,4386.7,0.00672741]
[1756683587921,3.2078,4387.1,4386.9,0.9379]
[1756683588313,0.18162281,4387.0,4386.9,0.9379]
[1756683588514,0.18162281,4387.0,4386.7,0.00672741]
[1756683588816,0.18162281,4386.9,4386.7,0.00672741]
[1756683589224,0.18162281,4386.9,4386.8,7.59773408]
[1756683589616,0.18162281,4386.9,4386.8,6.65983408]
[1756683591221,0.42462281,4386.9,4386.8,6.65983408]
[1756683591423,0.42462281,4386.9,4386.8,6.60983408]
[1756683591620,0.42459756,4386.9,4386.8,6.60983408]
[1756683592838,4.18159756,4386.9,4386.8,6.60983408]
[1756683593039,4.42459756,4386.9,4386.8,6.60983408]
[1756683593338,0.18159756,4386.9,4386.8,7.54773408]
[1756683593539,0.42459756,4386.9,4386.8,7.54773408]
[1756683595039,0.18159756,4386.9,4386.8,7.54773408]
[1756683595339,0.18159756,4386.9,4386.8,6.60983408]
[1756683595732,0.18159756,4386.9,4386.8,7.54773408]
[1756683597342,0.42459756,4386.9,4386.8,7.54773408]
[1756683597840,0.42459756,4386.9,4386.8,8.21263408]
[1756683598339,0.18159756,4386.9,4386.8,8.21263408]
[1756683599539,0.18159756,4386.9,4386.8,6.60983408]
[1756683599939,0.42459756,4386.9,4386.8,7.54773408]
[1756683600338,4.75612403,4386.9,4385.3,0.9379]
[1756683600538,3.2078,4385.5,4385.4,0.6649]
[1756683600839,3.38939756,4385.5,4385.4,1.6028]
[1756683601339,3.38942288,4385.5,4385.4,1.6028]
[1756683601541,0.18162288,4385.5,4385.4,1.6028]
[1756683601740,3.38942288,4385.5,4385.4,1.6028]
[1756683603342,0.18162288,4385.5,4385.4,1.6028]
[1756683604947,3.38942288,4385.5,4385.4,1.6028]
[1756683605138,0.18162288,4385.5,4385.4,1.6028]
[1756683605333,3.38942288,4385.5,4385.4,1.6028]
[1756683605537,7.63242288,4385.5,4384.4,0.9379]
[1756683605739,0.1139,4386.8,4384.9,1.6028]
[1756683605740,3.2078,4385.0,4384.9,1.6028]
[1756683605936,3.38942288,4385.0,4384.9,1.6028]
[1756683606839,3.38942288,4385.0,4384.9,1.5528]
[1756683608845,0.18162288,4385.0,4384.9,1.5528]
[1756683609345,3.2078,4385.5,4385.4,1.5867]
[1756683609535,3.38897596,4385.5,4385.4,1.5867]
[1756683610041,3.63197596,4385.5,4385.4,1.5867]
[1756683610238,3.38897596,4385.5,4385.4,1.5867]
[1756683610439,0.18117596,4385.5,4385.4,1.5867]
[1756683610644,3.4508,4386.0,4385.9,1.5867]
[1756683610645,3.2078,4386.0,4385.9,1.5867]
[1756683610844,3.38896748,4386.0,4385.9,0.924]
[1756683611146,3.77546748,4386.0,4385.1,0.924]
[1756683611347,0.18116748,4385.9,4385.1,0.924]
[1756683611644,0.243,4385.9,4385.1,0.924]
[1756683611845,0.18511804,4385.8,4385.1,0.924]
[1756683612045,0.18511804,4385.7,4385.6,1.5867]
[1756683612241,0.18511804,4385.8,4385.6,1.5867]
[1756683612540,0.32861804,4385.8,4385.7,1.5867]
[1756683612746,0.41831804,4385.8,4385.7,1.5867]
[1756683613938,0.41831804,4385.8,4384.7,0.924]
[1756683614136,3.2078,4385.5,4385.4,0.6627]
[1756683614341,3.39291804,4385.5,4385.4,1.5867]
[1756683616149,3.62611804,4385.5,4385.4,1.5867]
[1756683616746,3.53641804,4385.5,4385.4,1.5867]
[1756683617148,3.62611804,4385.5,4385.4,1.5867]
[1756683618347,3.39291804,4385.5,4385.4,1.5867]
[1756683620357,0.18511804,4385.5,4385.4,5.5867]
[1756683620546,0.18511804,4385.6,4385.4,4.6627]
[1756683620748,0.18511804,4385.5,4385.4,0.6627]
[1756683621251,0.18511804,4385.6,4385.4,0.6627]
[1756683621450,0.18511804,4385.5,4385.4,0.6627]
[1756683621754,2.1113,4385.9,4385.8,0.6627]
[1756683621956,2.297026,4385.9,4385.8,1.5867]
[1756683622151,0.185726,4385.9,4385.8,1.5867]
[1756683622346,0.18572602,4385.9,4385.8,4.6627]
[1756683622945,4.1376,4387.2,4385.9,0.924]
[1756683623252,33.02866307,4388.9,4387.6,1.5867]
[1756683623253,3.8313,4387.7,4387.6,1.5867]
[1756683623461,0.6235,4387.7,4387.6,1.5867]
[1756683623647,3.2078,4388.2,4387.6,1.5867]
[1756683623853,4.1376,4388.2,4387.6,1.5867]
[1756683624048,1.98416108,4390.5,4387.6,1.5867]
[1756683624049,3.3907679,4389.4,4388.7,0.6627]
[1756683624357,3.3907679,4389.4,4389.3,1.5867]
[1756683624551,0.6235,4389.0,4388.9,1.167]
[1756683624753,1.5533,4389.0,4388.3,0.924]
[1756683624949,0.9298,4388.6,4388.4,0.924]
[1756683625152,0.9298,4388.6,4388.3,0.243]
[1756683625153,1.5533,4388.5,4387.9,0.924]
[1756683625358,1.5533,4388.5,4387.9,1.167]
[1756683626256,4.7611,4388.0,4387.9,0.243]
[1756683626854,0.6235,4387.8,4387.3,0.924]
[1756683627048,0.9298,4387.4,4386.8,1.167]
[1756683627253,0.9298,4386.9,4386.8,0.924]
[1756683627454,3.2078,4387.0,4386.7,0.924]
[1756683627657,3.4508,4387.9,4386.7,0.924]
[1756683627855,3.2078,4387.9,4387.0,0.924]
[1756683628050,3.2078,4388.4,4387.0,0.924]
[1756683628354,3.2078,4388.4,4386.1,32.838]
[1756683628355,3.2078,4388.4,4387.5,0.924]
[1756683628548,3.2078,4388.4,4387.7,0.924]
[1756683629156,3.2078,4388.4,4387.8,0.243]
[1756683629559,0.9298,4388.3,4387.7,1.167]
[1756683630452,1.5533,4387.8,4387.7,0.243]
[1756683630652,4.7611,4387.8,4387.3,0.924]
[1756683630856,1.5533,4386.9,4386.7,0.243]
[1756683631052,3.2078,4386.9,4386.3,0.924]
[1756683631252,3.2078,4386.4,4385.9,0.924]
[1756683631452,0.9298,4386.3,4385.7,0.243]
[1756683631662,3.2078,4385.9,4385.3,0.924]
[1756683631860,3.2078,4385.9,4385.4,0.243]
[1756683632059,3.2078,4385.9,4384.9,0.924]
[1756683632060,0.9298,4385.8,4384.9,0.924]
[1756683632260,3.0411,4385.8,4385.0,0.243]
[1756683632949,3.0411,4385.8,4384.9,1.167]
[1756683633154,0.9298,4385.7,4384.9,1.167]
[1756683634561,0.9298,4385.7,4385.0,0.924]
[1756683634759,3.2078,4385.4,4385.0,0.924]
[1756683634960,3.2078,4385.4,4384.9,0.243]
[1756683635358,3.2078,4385.4,4384.8,0.243]
[1756683635661,4.1376,4385.4,4384.8,0.243]
[1756683636459,0.9298,4385.4,4384.8,0.243]
[1756683636659,2.1113,4385.8,4385.0,3.2078]
[1756683636861,2.1113,4385.8,4385.1,0.924]
[1756683637261,0.9298,4385.7,4385.2,0.243]
[1756683637563,0.9298,4385.7,4385.1,1.167]
[1756683640266,3.2078,4385.5,4385.2,1.0016]
[1756683640469,3.2078,4385.5,4385.1,0.243]
[1756683640470,1.5337,4385.2,4385.1,0.243]
[1756683641064,0.6136,4384.6,4384.3,4.2094]
[1756683641258,0.9201,4384.9,4384.3,1.2446]
[1756683641460,0.6136,4384.4,4384.1,0.10492342]
[1756683641664,4.1279,4384.2,4384.1,0.10492342]
[1756683642070,4.1279,4384.2,4384.1,1.10652342]
[1756683642768,3.2078,4384.7,4384.1,1.34952342]
[1756683643461,3.2078,4384.7,4384.2,0.243]
[1756683643667,3.2078,4384.7,4384.3,1.0016]
[1756683643867,3.2078,4384.7,4384.2,0.243]
[1756683644066,4.1279,4385.3,4384.3,1.0016]
[1756683644268,4.1279,4385.3,4384.4,1.0016]
[1756683645174,3.0314,4385.8,4384.9,1.0016]
[1756683645374,3.0314,4385.8,4385.0,0.243]
[1756683646268,0.9201,4385.8,4385.0,0.243]
[1756683646468,3.2078,4385.9,4385.1,1.0016]
[1756683646974,3.2078,4386.5,4385.8,3.2078]
[1756683647163,3.2078,4386.0,4385.4,1.0016]
[1756683647473,3.2078,4385.5,4385.1,0.243]
[1756683647674,0.9201,4385.4,4384.4,32.844]
[1756683647866,0.9201,4385.4,4384.5,0.243]
[1756683648067,3.2078,4384.9,4384.5,0.243]
[1756683648367,0.9201,4384.8,4384.2,0.243]
[1756683649073,0.9201,4385.2,4384.3,1.0016]
[1756683650375,2.1116,4385.3,4384.5,1.0016]
[1756683650869,0.9201,4385.2,4384.5,1.0016]
[1756683651074,0.9201,4385.2,4384.6,0.243]
[1756683651875,3.2078,4385.0,4384.6,0.243]
[1756683652176,0.9201,4384.9,4384.7,1.0016]
[1756683652869,3.0317,4385.3,4385.0,1.0016]
[1756683653065,3.0317,4385.3,4384.7,1.0016]
[1756683653269,2.1116,4385.3,4385.2,1.6347]
[1756683653469,2.1116,4385.3,4385.2,1.8777]
[1756683654564,2.1116,4385.3,4385.2,5.0855]
[1756683655472,2.1116,4385.3,4385.2,9.0855]
[1756683656483,2.1116,4385.3,4385.2,3.2078]
[1756683656484,3.6453,4385.3,4385.2,3.2078]
[1756683656778,3.6453,4385.3,4385.2,1.0016]
[1756683656974,0.9201,4385.2,4385.1,0.243]
[1756683657178,1.5337,4385.2,4385.1,0.243]
[1756683657375,0.6136,4385.2,4384.6,32.846]
[1756683657571,0.9201,4385.1,4384.8,1.0016]
[1756683657776,2.1116,4385.3,4384.8,1.0016]
[1756683658073,0.9201,4385.2,4385.1,1.6347]
[1756683658279,2.1116,4385.3,4385.2,1.6347]
[1756683659380,2.7252,4385.3,4385.2,1.6347]
[1756683659575,3.6453,4385.3,4385.2,0.8761]
[1756683659773,3.6453,4385.3,4385.2,0.243]
[1756683659974,0.9201,4385.2,4385.1,0.243]
[1756683660179,1.5337,4385.2,4385.1,0.243]
[1756683660479,3.2078,4387.2,4385.2,1.22964]
[1756683660682,3.2078,4387.2,4386.3,1.0016]
[1756683660976,3.2078,4387.2,4386.4,0.243]
[1756683661171,3.2078,4386.7,4386.5,0.243]
[1756683661372,3.2078,4386.7,4386.2,0.243]
[1756683661682,0.243,4387.2,4386.2,0.243]
[1756683661683,3.2078,4387.2,4386.3,1.0016]
[1756683662380,3.2078,4386.7,4386.4,0.243]
[1756683662678,3.2078,4386.7,4386.2,0.243]
[1756683662679,0.0341,4386.6,4386.2,0.243]
[1756683662879,3.2078,4386.7,4386.2,1.2446]
[1756683663073,3.2419,4386.7,4386.2,0.243]
[1756683663275,0.0341,4386.7,4386.2,0.243]
[1756683663575,2.1108,4386.9,4386.3,1.0016]
[1756683664877,2.1108,4386.9,4386.8,1.0016]
[1756683665174,0.0357,4386.9,4386.8,1.2446]
[1756683665374,0.0357,4387.6,4386.8,1.2446]
[1756683665570,0.0357,4388.2,4387.2,3.2078]
[1756683665774,3.2078,4388.3,4387.3,1.2446]
[1756683665974,3.2078,4388.3,4387.2,3.2078]
[1756683666174,3.2078,4387.6,4386.8,1.0016]
[1756683666374,0.0357,4387.5,4386.9,0.243]
[1756683666976,0.0357,4388.0,4387.0,1.0016]
[1756683667176,3.2078,4387.8,4387.0,1.0016]
[1756683667476,0.0357,4387.7,4386.5,3.2078]
[1756683667684,0.0357,4387.7,4386.6,1.2446]
[1756683668878,3.2078,4387.8,4386.6,1.2446]
[1756683669182,2.1103,4387.9,4387.1,0.9891]
[1756683669378,2.1103,4387.9,4387.7,3.2078]
[1756683669582,2.1103,4387.9,4387.8,1.2321]
[1756683669783,0.031,4388.6,4387.8,1.2321]
[1756683670277,0.031,4388.6,4386.0,3.05233045]
[1756683670278,0.031,4388.0,4386.3,0.9891]
[1756683670579,3.2078,4387.2,4386.5,0.9891]
[1756683670775,0.031,4387.1,4386.5,0.9891]
[1756683670975,3.2078,4387.2,4386.6,1.2321]
[1756683671182,3.2078,4387.2,4386.6,0.9891]
[1756683671673,3.2078,4387.2,4386.5,0.206]
[1756683671674,2.1417,4387.1,4386.5,0.206]
[1756683672479,2.1107,4387.1,4386.5,0.206]
[1756683672782,2.1417,4387.1,4386.5,0.206]
[1756683672979,2.1107,4387.1,4387.0,0.9891]
[1756683673179,2.1107,4387.1,4387.0,1.2321]
[1756683673687,0.031,4387.7,4387.0,1.2321]
[1756683673987,3.2078,4387.9,4387.0,1.2321]
[1756683674674,0.031,4387.8,4387.1,0.243]
[1756683675479,3.2078,4387.9,4387.1,0.243]
[1756683675675,2.1104,4387.7,4387.1,0.243]
[1756683675886,3.2078,4387.4,4387.1,0.243]
[1756683676081,3.2078,4387.4,4387.0,0.243]
[1756683676287,3.2078,4387.4,4386.4,3.2078]
[1756683676582,0.031,4387.3,4386.5,0.243]
[1756683677384,0.031,4387.3,4386.6,0.9891]
[1756683677883,3.2078,4387.4,4386.6,0.9891]
[1756683678684,0.031,4387.3,4386.7,0.243]
[1756683678981,0.031,4387.3,4385.2,0.9891]
[1756683678982,3.2078,4386.9,4385.2,0.9891]
[1756683679184,3.2388,4385.4,4385.2,0.9891]
[1756683679390,0.19641946,4385.3,4385.2,0.9891]
[1756683680190,0.22741946,4385.3,4384.9,0.243]
[1756683680481,0.19641946,4385.2,4385.0,0.9891]
[1756683681088,0.19641946,4385.2,4384.9,0.243]
[1756683681288,0.19641946,4385.1,4385.0,0.9891]
[1756683684488,3.4508,4385.9,4385.0,0.9891]
[1756683684689,0.18577299,4385.8,4385.0,0.9891]
[1756683684990,0.031,4385.3,4385.0,0.9891]
[1756683685287,0.18577656,4385.2,4385.0,0.9891]
[1756683685589,0.21677656,4385.1,4385.0,0.9891]
[1756683686793,0.21677656,4385.1,4384.4,0.9891]
[1756683686794,0.23147656,4385.1,4384.4,0.9891]
[1756683686993,0.18577656,4385.0,4384.4,0.9891]
[1756683687191,0.18577656,4384.9,4384.4,0.9891]
[1756683687393,0.18577656,4384.8,4384.3,3.4508]
[1756683687692,0.0092,4385.1,4384.3,3.4508]
[1756683687693,0.18577656,4384.7,4384.6,1.6425]
[1756683687994,0.19497656,4384.7,4384.6,1.6425]
[1756683690493,0.18577656,4384.7,4384.6,1.6425]
[1756683691088,3.2078,4384.9,4384.8,0.6534]
[1756683691395,3.39334053,4384.9,4384.8,1.6425]
[1756683692096,3.41724053,4384.9,4384.8,1.6425]
[1756683692996,3.41724053,4384.9,4384.3,0.243]
[1756683692997,3.41724053,4384.9,4384.4,0.9891]
[1756683693287,3.41724053,4384.9,4382.8,73.634]
[1756683693288,0.0092,4384.4,4383.7,0.243]
[1756683693488,3.44507,4384.9,4384.3,1.6425]
[1756683693687,0.0092,4384.7,4383.7,0.243]
[1756683693894,0.18540821,4384.6,4384.5,1.6425]
[1756683694294,0.0092,4384.2,4383.7,0.9891]
[1756683694593,3.2317,4384.2,4383.8,0.9891]
[1756683694795,3.41710821,4384.2,4383.8,0.9891]
[1756683695692,3.41706002,4384.2,4383.5,0.9891]
[1756683695886,3.66006002,4384.2,4383.5,0.9891]
[1756683696091,3.41706002,4384.2,4383.5,0.9891]
[1756683696294,7.66006002,4384.2,4383.5,0.9891]
[1756683696489,7.66001299,4384.2,4383.5,0.9891]
[1756683697292,7.41701299,4384.2,4383.5,0.9891]
[1756683697496,3.66001299,4384.2,4383.1,0.243]
[1756683697692,3.66001299,4384.2,4383.7,0.9891]
[1756683697894,3.66001299,4384.2,4383.3,0.9891]
[1756683698291,3.66001299,4384.2,4381.9,40.8]
[1756683698292,3.2078,4382.5,4381.1,0.913]
[1756683698487,1.32731299,4384.2,4381.1,0.913]
[1756683698488,3.2078,4381.7,4381.1,0.913]
[1756683698887,3.2078,4381.7,4381.3,0.913]
[1756683699089,3.2078,4381.7,4381.2,0.243]
[1756683699289,0.9092,4381.6,4381.0,0.00392477]
[1756683699489,0.9092,4381.1,4381.0,0.00392477]
[1756683699794,0.9092,4381.1,4379.8,0.913]
[1756683699795,1.33730868,4381.1,4379.8,0.913]
[1756683699989,3.2078,4380.1,4379.5,0.913]
[1756683700190,0.9092,4380.0,4379.5,0.913]
[1756683700400,3.2078,4380.1,4379.5,0.913]
[1756683700597,3.2078,4380.1,4379.7,0.913]
[1756683701094,3.2078,4381.1,4380.0,0.913]
[1756683701294,3.2078,4381.1,4380.2,0.913]
[1756683701694,3.2078,4381.1,4380.4,0.913]
[1756683702001,0.9092,4381.6,4380.4,0.913]
[1756683702201,3.2078,4381.2,4380.4,0.913]
[1756683702401,3.2078,4381.2,4380.5,0.244]
[1756683702594,3.2078,4381.2,4380.6,0.913]
[1756683703199,3.2078,4381.2,4380.1,0.913]
[1756683703200,0.9092,4381.1,4380.1,0.913]
[1756683703393,3.2078,4381.2,4380.3,0.913]
[1756683704312,3.2078,4381.2,4380.6,0.913]
[1756683704797,3.2078,4381.8,4381.2,0.913]
[1756683704996,3.2078,4381.8,4381.3,0.245]
[1756683705394,0.9092,4382.3,4381.3,0.245]
[1756683705601,4.117,4382.3,4381.4,0.913]
[1756683705999,3.2078,4382.3,4381.4,0.913]
[1756683706204,3.2078,4382.3,4381.3,0.245]
[1756683706205,0.9092,4382.6,4381.6,0.913]
[1756683706402,3.2078,4382.3,4381.6,0.913]
[1756683707602,3.2078,4382.8,4381.6,0.913]
[1756683708204,0.18761344,4382.7,4381.6,0.913]
[1756683708406,3.2078,4382.8,4381.6,0.913]
[1756683708707,3.2078,4382.8,4382.1,0.913]
[1756683708903,0.9092,4383.1,4382.3,0.913]
[1756683709115,3.2078,4383.3,4382.3,0.913]
[1756683709318,0.18762054,4383.2,4382.3,0.913]
[1756683709611,3.2078,4383.3,4382.6,0.913]
[1756683709812,3.2078,4383.3,4382.7,0.245]
[1756683710009,3.2078,4383.9,4382.8,0.913]
[1756683710507,3.2078,4383.9,4382.7,0.245]
[1756683710508,3.2078,4383.9,4383.1,0.913]
[1756683710709,3.2078,4383.9,4383.3,0.913]
[1756683711110,0.9092,4383.8,4382.6,0.913]
[1756683711313,0.9092,4383.8,4382.7,0.245]
[1756683711615,0.9092,4383.8,4382.8,41.713]
[1756683711805,0.245,4384.5,4382.5,3.2078]
[1756683711806,3.2078,4383.3,4382.5,3.2078]
[1756683712006,0.9092,4383.2,4382.6,0.245]
[1756683712209,3.2078,4382.7,4382.4,0.913]
[1756683712406,0.9092,4382.6,4382.5,0.245]
[1756683712812,0.9092,4382.6,4382.4,0.245]
[1756683713112,0.9092,4382.6,4382.0,0.913]
[1756683713113,0.9092,4382.6,4381.4,0.913]
[1756683713317,1.58732886,4385.7,4381.3,32.865]
[1756683713318,0.9092,4381.9,4381.6,0.913]
[1756683713514,0.9092,4381.9,4381.4,0.913]
[1756683713714,0.9092,4381.9,4381.8,0.913]
[1756683713918,3.2078,4382.0,4381.8,0.913]
[1756683714112,3.2078,4382.0,4381.7,0.245]
[1756683714308,3.2078,4382.0,4381.8,0.913]
[1756683714519,3.2078,4382.0,4381.7,0.245]
[1756683715320,3.2078,4382.0,4381.8,0.245]
[1756683715517,4.117,4382.0,4381.8,0.245]
[1756683715820,32.863,4384.2,4381.8,0.245]
[1756683715821,0.9092,4382.4,4381.8,0.245]
[1756683716121,3.2078,4382.7,4381.9,0.913]
[1756683716413,0.18779669,4382.6,4381.9,0.913]
[1756683716612,0.18779669,4382.5,4381.9,0.913]
[1756683716814,3.2078,4382.7,4381.9,0.913]
[1756683717412,3.2078,4382.7,4382.0,0.41074]
[1756683717619,0.114,4382.6,4382.1,0.913]
[1756683717821,0.114,4382.6,4382.1,40.8]
[1756683718017,0.114,4382.6,4382.2,3.2078]
[1756683718221,4.117,4383.8,4382.5,0.913]
[1756683718417,0.18799526,4383.7,4382.9,0.913]
[1756683718716,3.2078,4383.8,4383.1,0.913]
[1756683718923,0.9092,4383.7,4383.1,0.913]
[1756683719217,0.9092,4383.6,4383.2,0.244]
[1756683719419,0.9092,4383.5,4383.3,0.244]
[1756683719615,3.2078,4383.8,4383.4,0.244]
[1756683719823,3.2078,4383.8,4383.4,1.157]
[1756683719824,0.18800468,4383.7,4383.4,1.157]
[1756683720017,0.18800468,4383.6,4383.4,1.157]
[1756683720318,0.9092,4383.7,4383.4,0.244]
[1756683720522,0.18803762,4383.6,4383.5,0.913]
[1756683720822,3.2078,4384.3,4383.5,0.913]
[1756683721012,0.1880314,4384.2,4383.5,0.913]
[1756683721214,0.18809484,4384.1,4383.6,0.244]
[1756683721422,0.9092,4383.9,4383.6,0.244]
[1756683721720,3.2078,4384.3,4383.7,0.913]
[1756683721915,2.0448,4384.4,4384.0,0.913]
[1756683722119,2.0448,4384.4,4384.1,0.245]
[1756683722716,2.0448,4384.4,4384.2,0.913]
[1756683723118,2.0448,4384.4,4384.1,0.245]
[1756683723422,2.0448,4384.4,4384.2,0.913]
[1756683723824,2.0448,4384.4,4384.3,0.913]
[1756683724717,3.2078,4385.4,4384.4,0.41051]
[1756683725020,3.2078,4385.4,4384.8,3.2078]
[1756683725215,4.117,4385.9,4384.9,0.244]
[1756683725422,4.117,4386.5,4385.6,0.871]
[1756683725618,0.9092,4386.5,4386.1,3.2078]
[1756683725919,0.9092,4386.5,4386.3,0.871]
[1756683726221,0.9092,4386.9,4385.6,0.871]
[1756683726524,0.4,4386.8,4385.8,0.871]
[1756683726724,0.9092,4386.7,4385.8,0.871]
[1756683726925,0.9092,4386.7,4385.9,0.244]
[1756683727113,0.4,4386.8,4385.6,3.2078]
[1756683727315,0.9092,4386.7,4386.0,0.244]
[1756683727519,0.9092,4386.7,4386.1,0.244]
[1756683727818,0.9092,4386.7,4386.1,1.115]
[1756683728020,0.4,4386.8,4386.4,3.2078]
[1756683728522,0.4,4386.8,4386.5,0.9165]
[1756683728722,0.4,4386.8,4386.4,3.2078]
[1756683728723,0.4,4386.8,4386.7,0.9165]
[1756683729123,3.2078,4388.0,4387.1,0.41025]
[1756683729325,3.2078,4388.0,4387.4,0.9165]
[1756683729626,3.2078,4388.0,4387.6,0.9165]
[1756683729823,0.9254,4388.3,4387.5,0.244]
[1756683730019,0.9254,4388.3,4387.8,3.2078]
[1756683730224,0.9254,4389.1,4387.9,1.1605]
[1756683730523,3.2078,4389.2,4387.9,1.1605]
[1756683730727,0.9254,4388.5,4388.0,0.244]
[1756683731021,3.2078,4388.1,4387.3,3.2078]
[1756683731221,0.9254,4388.0,4387.3,3.2078]
[1756683731419,0.9254,4388.0,4387.4,0.244]
[1756683731619,0.9254,4388.0,4387.0,40.8]
[1756683731824,0.9254,4388.0,4387.1,0.244]
[1756683732328,0.9254,4388.0,4387.2,0.244]
[1756683733827,0.9254,4388.0,4387.3,3.2078]
[1756683734032,0.9254,4388.0,4387.4,0.243]
[1756683734429,3.2078,4388.1,4386.8,3.2078]
[1756683734728,0.9254,4388.0,4387.3,3.2078]
[1756683734929,0.9254,4388.0,4387.4,0.243]
[1756683735426,0.9254,4388.0,4387.5,0.9165]
[1756683735629,0.9254,4388.0,4387.0,0.41026]
[1756683735630,0.9254,4388.4,4387.8,3.2078]
[1756683735929,0.9254,4388.4,4386.8,0.9165]
[1756683735930,0.9254,4388.1,4387.9,0.244]
[1756683736728,0.9254,4388.1,4386.9,3.2078]
[1756683736926,0.9254,4387.6,4386.4,3.2078]
[1756683737226,0.3992,4388.5,4386.0,32.836]
[1756683737227,0.9254,4386.4,4386.0,32.836]
[1756683737526,0.9254,4386.4,4385.6,3.2078]
[1756683737527,3.2078,4386.5,4386.1,0.244]
[1756683737730,0.9254,4386.4,4386.1,0.244]
[1756683738133,0.9254,4386.4,4385.6,3.2078]
[1756683738334,0.9254,4386.4,4385.7,0.244]
[1756683738629,0.9254,4386.4,4385.8,0.244]
[1756683738828,0.9254,4386.4,4385.6,3.2078]
[1756683739139,4.1332,4386.5,4385.9,0.244]
[1756683739536,4.1332,4386.5,4385.6,3.2078]
[1756683739726,3.2078,4386.5,4385.6,3.2078]
[1756683740034,0.9254,4386.4,4385.7,0.243]
[1756683741131,0.9254,4386.4,4385.6,3.2078]
[1756683741325,0.9254,4386.4,4385.7,0.243]
[1756683741926,0.9254,4386.9,4386.2,0.9165]
[1756683742233,0.9254,4386.9,4386.3,0.243]
[1756683742433,0.9254,4387.0,4386.4,0.243]
[1756683742634,3.2078,4387.1,4386.5,0.243]
[1756683742828,0.9254,4386.5,4385.3,40.8]
[1756683743029,0.9254,4385.7,4385.2,32.836]
[1756683743336,0.9254,4385.3,4385.2,32.836]
[1756683743635,0.9254,4385.3,4385.2,33.08]
[1756683744234,0.9254,4385.3,4385.2,32.836]
[1756683744626,0.9254,4385.3,4385.2,33.079]
[1756683746037,0.9254,4385.3,4385.2,32.836]
[1756683746230,0.9254,4385.3,4385.2,33.079]
[1756683749928,0.9254,4385.3,4385.2,32.836]